Cogmind - Beta 11.1 @@@ ROGUE MODE // 2022.11.13 @ 19:45:12 Player: ok-primus Result: Destroyed by S-27 Virus with Autogun Performance ------------- Evolutions (6) 3000 Regions Visited (11) 2200 Robots Destroyed (38) 190 Value Destroyed (1632) 1632 Prototype IDs (7) 140 Alien Tech Used (0) 0 Bonus (106) 106 TOTAL SCORE: 7268 Bonus ------- Follower Combat Kills 106 Cogmind --------- Core Integrity 0/1150 Matter 300/300 Energy 99/100 System Corruption 4% Temperature Cool (0) Movement Core (50) Location -4/Factory Parts ------- > --- POWER (1) -------- (None) > --- PROPULSION (8) --- (None) > --- UTILITY (8) ------ Improved Terrain Scan Processor Improved Terrain Scan Processor Improved Terrain Scan Processor Targeting Computer > --- WEAPON (2) ------- (None) > --- INVENTORY (5) ---- Force Field Improved EM Pulse Cannon Autogun Chainsword Peak State ------------ > --- POWER ------------ (None) > --- PROPULSION ------- Armored Medium Treads Heavy Treads Armored Leg Cooled Aerolev Unit Cesium-ion Thruster Cooled Field Propulsion Drive > --- UTILITY ---------- Enhanced Optical Array Improved Terrain Scan Processor Improved Terrain Scan Processor Improved Terrain Scan Processor Targeting Computer Targeting Computer > --- WEAPON ----------- Axe > --- INVENTORY -------- Force Field Improved EM Pulse Cannon Autogun Chainsword [Rating: 60] Favorites ----------- Power Light Ion Engine Engine Light Ion Engine Power Core Micro Nuclear Core Propulsion Armored Treads Treads Armored Treads Leg Aluminum Leg Wheel Wheel Hover Unit Cooled Aerolev Unit Flight Unit Xenon Bombardment Thruster Utility Targeting Computer Device Improved Sensor Array Storage Large Storage Unit Processor Targeting Computer Protection Hardened Medium Armor Plating Weapon Autogun Energy Gun Medium Laser Ballistic Gun Autogun Launcher Rocket Launcher Slashing Weapon Axe Build | -11 -10 -10 -10 -9 -8 -7 -7 -7 -6 -5 -4 ------- Run | Scr Mat Min Exi Min Mat Fac Low Low Fac Fac Fac Slots Evolved 12 | . . . . . 4 2 . . 2 2 2 Power . | . . . . . . . . . . . . Propulsion 6 | . . . . . 2 . . . . 2 2 Utility 6 | . . . . . 2 2 . . 2 . . Weapon . | . . . . . . . . . . . . Parts Attached 95 | 6 2 . 1 . 21 20 24 . 12 1 8 Power 9 | 1 . . . . 1 2 4 . 1 . . Engine 4 | 1 . . . . . . 3 . . . . Core 5 | . . . . . 1 2 1 . 1 . . Reactor . | . . . . . . . . . . . . Propulsion 25 | 2 . . . . 9 . 5 . 5 1 3 Treads 10 | . . . . . 5 . 3 . . . 2 Leg 8 | 2 . . . . 4 . 1 . . 1 . Wheel 2 | . . . . . . . 1 . 1 . . Hover 1 | . . . . . . . . . 1 . . Flight 4 | . . . . . . . . . 3 . 1 Utility 27 | 1 2 . 1 . 7 3 4 . 4 . 5 Device 9 | . . . 1 . 2 2 1 . 2 . 1 Storage 5 | 1 2 . . . 2 . . . . . . Processor 7 | . . . . . 1 . . . 2 . 4 Hackware . | . . . . . . . . . . . . Protection 6 | . . . . . 2 1 3 . . . . Artifact . | . . . . . . . . . . . . Weapon 34 | 2 . . . . 4 15 11 . 2 . . Energy Gun 3 | 2 . . . . 1 . . . . . . Energy Cannon . | . . . . . . . . . . . . Ballistic Gun 20 | . . . . . 3 8 8 . 1 . . Ballistic Cannon . | . . . . . . . . . . . . Launcher 3 | . . . . . . . 3 . . . . Special Weapon . | . . . . . . . . . . . . Impact Weapon . | . . . . . . . . . . . . Slashing Weapon 8 | . . . . . . 7 . . 1 . . Piercing Weapon . | . . . . . . . . . . . . Special Melee Weapon . | . . . . . . . . . . . . Unidentified Prototypes 4 | . . . . . . . . . 3 . 1 Parts Lost 37 | . . . . . 2 1 20 1 . . 13 Power 2 | . . . . . . . 2 . . . . Propulsion 16 | . . . . . . . 7 1 . . 8 Utility 14 | . . . . . 2 . 8 . . . 4 Weapon 5 | . . . . . . 1 3 . . . 1 Highest Loss Streak 9 | . . . . . 1 1 9 1 . . 9 To Critical Strikes . | . . . . . . . . . . . . Average Slot Usage (%) 85 | . 85 85 98 100 87 95 81 52 47 59 68 Engine 5 | . 14 14 14 14 3 . 6 7 2 . . Core 2 | . . . . . 5 6 . . 1 . . Treads 13 | . . . . . 9 30 20 . . . 3 Leg 10 | . 28 28 28 28 23 . 3 7 5 1 4 Flight 1 | . . . . . . . . . 3 11 10 Device 7 | . . . 12 14 8 10 5 . . 5 4 Storage 7 | . 14 14 14 14 9 7 7 7 3 . . Processor 7 | . . . . . 5 7 7 7 11 17 29 Protection 7 | . . . . . 5 15 12 . . . . Energy Gun 6 | . 28 28 28 28 5 . . . . . . Ballistic Gun 9 | . . . . . 12 12 14 15 6 5 1 Slashing Weapon 1 | . . . . . . 1 . . 5 5 4 Naked Turns . | . . . . . . . . . . . . Heaviest Build 54 | 12 27 17 22 22 38 54 54 35 35 10 10 Greatest Support 80 | 20 20 20 20 20 80 80 80 16 15 11 11 Greatest Overweight (x) 2 | . 1 . 1 1 1 . 2 2 2 . . Average Overweight (x) . | . . . . 1 . . . 2 . . . Largest Inventory Capacity 15 | 8 15 10 10 10 15 15 15 15 15 5 5 Average Capacity 12 | 7 9 10 10 10 14 15 15 15 11 5 5 Most Carried 15 | 8 9 9 9 10 15 15 15 9 9 5 5 Average Carried 11 | 5 7 9 8 9 13 14 11 9 7 5 4 Final Capacity 15 | 8 10 10 10 10 15 15 15 15 5 5 5 Final Carried 15 | 7 9 9 9 10 15 15 9 9 5 5 4 Class Distribution -------------------- 73% | Mutant 20% | Scavenger-Mutant 6% | Commander-Mutant Dominant Class ---------------- Mutant | -10/Materials Mutant | -10/Mines Mutant | -10/Exiles Commander-Mutant | -9/Mines Scavenger-Mutant | -8/Materials Mutant | -7/Factory Mutant | -7/Lower Caves Scavenger-Mutant | -7/Lower Caves Mutant | -6/Factory Mutant | -5/Factory Mutant | -4/Factory Resources | -11 -10 -10 -10 -9 -8 -7 -7 -7 -6 -5 -4 ----------- Run | Scr Mat Min Exi Min Mat Fac Low Low Fac Fac Fac Matter Collected 2219 | 260 . . . 30 228 618 901 . 61 118 3 Remotely . | . . . . . . . . . . . . Salvage Created 2136 | 84 . . . . 313 702 919 . . 118 . Parts 86 | 3 . . . . 18 36 27 . . 2 . Haulers Intercepted 3 | . . . . . 1 1 . . . 1 . Recyclers Shooed . | . . . . . . . . . . . . Parts Field Recycled . | . . . . . . . . . . . . Retrieved Matter . | . . . . . . . . . . . . Parts Self-Destructed 15 | . . . . . . . 15 . . . . Prevented . | . . . . . . . . . . . . Kills | -11 -10 -10 -10 -9 -8 -7 -7 -7 -6 -5 -4 ------- Run | Scr Mat Min Exi Min Mat Fac Low Low Fac Fac Fac Combat Hostiles Destroyed 32 | . . . . . 5 9 18 . . . . Guns 22 | . . . . . 5 9 8 . . . . AOE 10 | . . . . . . . 10 . . . . Classes Destroyed 9 | 1 . . . . 4 1 3 . . . . Hauler 3 | . . . . . 1 1 . . . 1 . Recycler 3 | 1 . . . . . 2 . . . . . Swarmer 2 | . . . . . . . 2 . . . . Grunt 11 | . . . . . 1 3 7 . . . . Sentry 6 | . . . . . 2 2 2 . . . . Hunter 3 | . . . . . 2 1 . . . . . Programmer 4 | . . . . . . 3 1 . . . . Packrat 3 | . . . . . . . 3 . . . . Thug 4 | . . . . . . . 4 . . . . Butcher 1 | . . . . . . . 1 . . . . Mutant 1 | . . . . . . . 1 . . . . Best Kill Streak 4 | 1 . . . . 2 3 4 . . 1 . Combat Bots Only 4 | . . . . . 2 2 4 . . . . Max Kills in Single Turn 2 | 1 . . . . 1 1 2 . . 1 . Gunslinging . | . . . . . . . . . . . . Exploded 2 | . . . . . . . 2 . . . . Melee . | . . . . . . . . . . . . Uniques/NPCs Destroyed . | . . . . . . . . . . . . Combat | -11 -10 -10 -10 -9 -8 -7 -7 -7 -6 -5 -4 -------- Run | Scr Mat Min Exi Min Mat Fac Low Low Fac Fac Fac Damage Taken 7296 | . 10 . . . 520 1004 3019 35 . . 2708 Core 1560 | . . . . . 92 90 226 . . . 1152 Absorbed by Shields 173 | . . . . . . 156 . . . . 17 Redirected to Shielding 77 | . . . . . . . 77 . . . . Regen/Repaired (Parts) 63 | . . . . . 16 47 . . . . . Core Remaining (%) 89 | 100 . . . 100 83 . . 54 100 100 . Volleys Fired 171 | 2 . . . . 31 53 73 . 2 10 . Largest 2 | 2 . . . . 2 2 2 . 2 1 . Hottest 100 | 100 . . . . 43 46 48 . 46 23 . Shots Fired 315 | 4 . . . . 62 105 130 . 4 10 . Gun 299 | 4 . . . . 62 105 114 . 4 10 . Cannon . | . . . . . . . . . . . . Launcher 16 | . . . . . . . 16 . . . . Special . | . . . . . . . . . . . . Kinetic 295 | . . . . . 62 105 114 . 4 10 . Thermal 4 | 4 . . . . . . . . . . . Explosive 16 | . . . . . . . 16 . . . . Electromagnetic . | . . . . . . . . . . . . Robot Hit Streak 19 | 4 . . . . 9 17 19 . 12 11 . Robot Miss Streak 2 | . . . . . 1 2 2 . 2 . . Penetration Max . | . . . . . . . . . . . . Secondary Targets . | . . . . . . . . . . . . Shots Hit Robots 248 | 4 . . . . 50 81 101 . 2 10 . Core Hits 109 | 2 . . . . 18 28 53 . . 4 4 Critical Kills . | . . . . . . . . . . . . Critical Parts Destroyed . | . . . . . . . . . . . . Critical Strikes . | . . . . . . . . . . . . Melee Attacks 67 | . . . . . . 27 . . 6 . 34 Impact . | . . . . . . . . . . . . Slashing 67 | . . . . . . 27 . . 6 . 34 Piercing . | . . . . . . . . . . . . Sneak Attacks . | . . . . . . . . . . . . Combat Hostiles . | . . . . . . . . . . . . Follow-up Attacks . | . . . . . . . . . . . . Damage Inflicted 4664 | 51 . . . . 494 1210 2691 . 29 151 38 Guns 3376 | 51 . . . . 494 1210 1441 . 29 151 . Cannons . | . . . . . . . . . . . . Explosions 1250 | . . . . . . . 1250 . . . . Melee . | . . . . . . . . . . . . Ramming 38 | . . . . . . . . . . . 38 Kinetic 3325 | . . . . . 494 1210 1441 . 29 151 . Thermal 51 | 51 . . . . . . . . . . . Explosive 1250 | . . . . . . . 1250 . . . . Electromagnetic . | . . . . . . . . . . . . Impact . | . . . . . . . . . . . . Slashing . | . . . . . . . . . . . . Piercing . | . . . . . . . . . . . . Highest Corruption 5 | . . . . . . 3 5 5 1 . 4 Average Corruption 2 | . . . . . . 2 3 5 1 . 1 Corruption Purged . | . . . . . . . . . . . . Corruption Blocked . | . . . . . . . . . . . . Effects 51 | . . . . . . 19 29 2 1 . . Message Errors 21 | . . . . . . 8 13 . . . . Matter Fused 9 | . . . . . . 3 4 1 1 . . Heat Flow Errors 4 | . . . . . . 1 2 1 . . . Energy Discharges 5 | . . . . . . 1 4 . . . . Parts Rejected 1 | . . . . . . . 1 . . . . Data Loss (minor) 3 | . . . . . . 2 1 . . . . Data Loss (major) 4 | . . . . . . 3 1 . . . . Misfires 1 | . . . . . . 1 . . . . . Alerts 3 | . . . . . . . 3 . . . . Overload Shots . | . . . . . . . . . . . . Overflow Damage 45 | . . . . . . . 45 . . . . Projectiles . | . . . . . . . . . . . . Explosions 45 | . . . . . . . 45 . . . . Melee . | . . . . . . . . . . . . Knockbacks . | . . . . . . . . . . . . Impact . | . . . . . . . . . . . . Kinetic . | . . . . . . . . . . . . Secondary . | . . . . . . . . . . . . Self-Inflicted Damage 287 | . . . . . . . 271 . . . 16 Shots 9 | . . . . . . . 9 . . . . Rammed 12 | . . . . . . . . . . . 12 Targets Rammed 12 | . . . . . . . . . . . 12 Kicked . | . . . . . . . . . . . . Crushed . | . . . . . . . . . . . . Highest Temperature 211 | 78 . . . . 18 211 197 191 . . . Average Temperature 41 | 40 . . . . 8 29 55 96 . . . Received Heat Transfer 1428 | . 6 . . . 90 143 1051 18 . . 120 Siege Activations . | . . . . . . . . . . . . Robots Corrupted . | . . . . . . . . . . . . Combat Hostiles . | . . . . . . . . . . . . Parts Fried . | . . . . . . . . . . . . Impact Corruptions . | . . . . . . . . . . . . Robots Melted . | . . . . . . . . . . . . Combat Hostiles . | . . . . . . . . . . . . Parts Melted . | . . . . . . . . . . . . Heat Transferred 148 | 148 . . . . . . . . . . . Parts Sabotaged . | . . . . . . . . . . . . Parts Stolen . | . . . . . . . . . . . . Parts Stripped . | . . . . . . . . . . . . Power Chain Reactions . | . . . . . . . . . . . . Missiles Intercepted . | . . . . . . . . . . . . Alert | -11 -10 -10 -10 -9 -8 -7 -7 -7 -6 -5 -4 ------- Run | Scr Mat Min Exi Min Mat Fac Low Low Fac Fac Fac Peak Influence 302 | 5 3 . . 60 152 150 . . 98 12 302 Initial 49 | . 3 . . . 23 49 . . 2 5 5 Average 71 | 2 3 . . 59 81 77 . . 24 7 125 Maximum Alert Level 1 | . . . . . . . . . . . 1 Low Security (%) 96 | 100 100 100 . 100 100 100 . . 100 100 67 Level 1 3 | . . . . . . . . . . . 32 Level 2 . | . . . . . . . . . . . . Level 3 . | . . . . . . . . . . . . Level 4 . | . . . . . . . . . . . . Level 5 . | . . . . . . . . . . . . High Security . | . . . . . . . . . . . . Max Security . | . . . . . . . . . . . . Squads Dispatched 9 | . . . . . . 5 . . 1 1 2 Investigation 1 | . . . . . . . . . . . 1 Extermination 2 | . . . . . . 2 . . . . . Reinforcement 6 | . . . . . . 3 . . 1 1 1 Assault . | . . . . . . . . . . . . Garrison . | . . . . . . . . . . . . Intercept . | . . . . . . . . . . . . Searches Triggered . | . . . . . . . . . . . . Construction Impeded . | . . . . . . . . . . . . Haulers Reinforced 2 | . . . . . . 1 . . . 1 . Active Scanning Responses . | . . . . . . . . . . . . Cargo Convoy Interrupts . | . . . . . . . . . . . . Stealth | -11 -10 -10 -10 -9 -8 -7 -7 -7 -6 -5 -4 --------- Run | Scr Mat Min Exi Min Mat Fac Low Low Fac Fac Fac Distress Signals 3 | . 1 . . . 1 . . . . . 1 Communications Jammed . | . . . . . . . . . . . . Distress Signals . | . . . . . . . . . . . . Times Spotted 100 | . 3 . . . 10 18 19 4 5 . 41 Peak Tracking Total 20 | . 4 . . . 3 4 5 3 4 . 20 Tactical Retreats 13 | . . . . . . 1 1 1 3 . 7 Traps | -11 -10 -10 -10 -9 -8 -7 -7 -7 -6 -5 -4 ------- Run | Scr Mat Min Exi Min Mat Fac Low Low Fac Fac Fac Traps Triggered 1 | . . . . . . . . . 1 . . Indirectly . | . . . . . . . . . . . . Trap Hack Attempts . | . . . . . . . . . . . . Triggered . | . . . . . . . . . . . . Disarmed . | . . . . . . . . . . . . Reprogrammed . | . . . . . . . . . . . . Reused . | . . . . . . . . . . . . Traps Extracted . | . . . . . . . . . . . . Installed . | . . . . . . . . . . . . Triggered 2 | . . . . . . . 2 . . . . Machines | -11 -10 -10 -10 -9 -8 -7 -7 -7 -6 -5 -4 ---------- Run | Scr Mat Min Exi Min Mat Fac Low Low Fac Fac Fac Machines Disabled 2 | . . . . . . . 2 . . . . Max in Single Turn 1 | . . . . . . . 1 . . . . Machines Sabotaged . | . . . . . . . . . . . . Garrisons Compromised . | . . . . . . . . . . . . Overloaded Fab Kills . | . . . . . . . . . . . . Hacking | -11 -10 -10 -10 -9 -8 -7 -7 -7 -6 -5 -4 --------- Run | Scr Mat Min Exi Min Mat Fac Low Low Fac Fac Fac Machines Accessed 22 | . . . 4 1 4 7 2 . 2 . 2 Terminals 10 | . . . . . 2 6 . . 2 . . Fabricators . | . . . . . . . . . . . . Repair Stations 2 | . . . . . 1 1 . . . . . Recycling Units 1 | . . . . . 1 . . . . . . Scanalyzers 1 | . . . . . . . . . . . 1 Garrison Access 1 | . . . . . . . . . . . 1 Total Hacks 87 | . . . 49 1 8 13 6 . 5 . 5 Successful 69 | . . . 49 1 5 5 6 . 3 . . Failed 18 | . . . . . 3 8 . . 2 . 5 Catastrophic 5 | . . . . . . 3 . . 1 . 1 Database Lockouts . | . . . . . . . . . . . . Manual 11 | . . . . . 3 7 . . 1 . . Terminals 19 | . . . . . 4 10 . . 5 . . Fabricators . | . . . . . . . . . . . . Repair Stations 5 | . . . . . 2 3 . . . . . Recycling Units 2 | . . . . . 2 . . . . . . Scanalyzers 2 | . . . . . . . . . . . 2 Garrison Access 3 | . . . . . . . . . . . 3 Terminal Hacks 62 | . . . 49 1 1 2 6 . 3 . . Record 55 | . . . 49 . . 1 5 . . . . Prototype ID Bank 1 | . . . . . . 1 . . . . . Open Door 2 | . . . . 1 . . 1 . . . . Branch Access Points 1 | . . . . . . . . . 1 . . Unreport Threat 1 | . . . . . . . . . 1 . . Zone Layout 2 | . . . . . 1 . . . 1 . . Fabricator Hacks . | . . . . . . . . . . . . Repair Station Hacks 5 | . . . . . 2 3 . . . . . Scan Component 2 | . . . . . 1 1 . . . . . Repair 2 | . . . . . 1 1 . . . . . Refit 1 | . . . . . . 1 . . . . . Recycling Unit Hacks . | . . . . . . . . . . . . Scanalyzer . | . . . . . . . . . . . . Garrison Access Hacks . | . . . . . . . . . . . . Unauthorized Hacks 2 | . . . . . 2 . . . . . . Terminals . | . . . . . . . . . . . . Fabricators . | . . . . . . . . . . . . Repair Stations . | . . . . . . . . . . . . Recycling Units 2 | . . . . . 2 . . . . . . Monitor 1 | . . . . . 1 . . . . . . Mask 1 | . . . . . 1 . . . . . . Scanalyzers . | . . . . . . . . . . . . Garrison Access . | . . . . . . . . . . . . Data Cores Recovered . | . . . . . . . . . . . . Used . | . . . . . . . . . . . . Hacking Detections 15 | . . . . . 4 7 . . 2 . 2 Full Trace Events 1 | . . . . . . . . . . . 1 Feedback Events . | . . . . . . . . . . . . Feedback Blocked . | . . . . . . . . . . . . Robot Schematics Acquired . | . . . . . . . . . . . . Robots Built . | . . . . . . . . . . . . Authchips . | . . . . . . . . . . . . Time . | . . . . . . . . . . . . Total Robot Build Rating . | . . . . . . . . . . . . Part Schematics Acquired . | . . . . . . . . . . . . Parts Built . | . . . . . . . . . . . . Authchips . | . . . . . . . . . . . . Time . | . . . . . . . . . . . . Total Part Build Rating . | . . . . . . . . . . . . Parts Repaired 2 | . . . . . 1 1 . . . . . Time 64 | . . . . . 26 38 . . . . . Parts Recycled . | . . . . . . . . . . . . Recycled Matter . | . . . . . . . . . . . . Retrieved Matter . | . . . . . . . . . . . . Retrieved Components . | . . . . . . . . . . . . Parts Scanalyzed . | . . . . . . . . . . . . Part Schematics Acquired . | . . . . . . . . . . . . Parts Damaged . | . . . . . . . . . . . . Bothacking | -11 -10 -10 -10 -9 -8 -7 -7 -7 -6 -5 -4 ------------ Run | Scr Mat Min Exi Min Mat Fac Low Low Fac Fac Fac Used RIF Installer . | . . . . . . . . . . . . Robots Hacked . | . . . . . . . . . . . . Non-combat . | . . . . . . . . . . . . Combat . | . . . . . . . . . . . . Robot Hacks Applied . | . . . . . . . . . . . . Relay Couplers Released . | . . . . . . . . . . . . Fabnet Peak Effective % . | . . . . . . . . . . . . Robots Rewired 5 | . . . 4 . . . 1 . . . . Allies Hacked . | . . . . . . . . . . . . Hacks Repelled . | . . . . . . . . . . . . Allies | -11 -10 -10 -10 -9 -8 -7 -7 -7 -6 -5 -4 -------- Run | Scr Mat Min Exi Min Mat Fac Low Low Fac Fac Fac Total Allies 5 | . . . 4 . . . 1 . . . . Largest Group 4 | . . . 4 4 4 . 1 . . . . Highest-Rated Group 45 | . . . 45 45 45 . 31 . . . . Highest-Rated Ally 31 | . . . 21 21 21 . 31 . . . . Total Orders . | . . . . . . . . . . . . Ally Attacks 26 | . . . . 3 20 . 3 . . . . Total Damage 336 | . . . . 56 217 . 63 . . . . Kills 6 | . . . . 2 4 . . . . . . Allies Corrupted . | . . . . . . . . . . . . Allies Melted . | . . . . . . . . . . . . Intel | -11 -10 -10 -10 -9 -8 -7 -7 -7 -6 -5 -4 ------- Run | Scr Mat Min Exi Min Mat Fac Low Low Fac Fac Fac Robot Analysis Total . | . . . . . . . . . . . . Derelict Logs Recovered . | . . . . . . . . . . . . Drone Launches . | . . . . . . . . . . . . Drone Recoveries . | . . . . . . . . . . . . Exploration | -11 -10 -10 -10 -9 -8 -7 -7 -7 -6 -5 -4 ------------- Run | Scr Mat Min Exi Min Mat Fac Low Low Fac Fac Fac Turns Passed 5954 | 92 64 40 901 246 731 1495 1390 134 393 67 401 Spaces Moved 3380 | 63 50 34 495 122 322 657 621 102 357 98 459 Core 76 | 9 . . . . . . . . . . 67 Treads 1216 | . . . . . 85 657 474 . . . . Legs 1149 | 54 50 34 495 122 237 . 69 3 85 . . Wheels 177 | . . . . . . . 78 99 . . . Hover . | . . . . . . . . . . . . Flight 762 | . . . . . . . . . 272 98 392 Fastest Speed 39 | 50 120 120 120 190 120 170 130 130 39 39 49 Average Speed 141 | 110 121 120 177 190 153 170 173 133 96 42 61 Slowest Speed 260 | 120 190 120 190 190 250 170 260 260 260 49 105 Overloaded Moves . | . . . . . . . . . . . . Propulsion Burnouts . | . . . . . . . . . . . . Robots Hopped 5 | . . . . . . . . . 2 1 2 Cave-ins Triggered . | . . . . . . . . . . . . Exploration Rate (%) 26 | 5 13 7 90 37 28 22 66 16 16 3 19 Regions Visited 11 Branch Regions 5 Pre-discovered Areas 1 | . . . 1 . . . . . . . . Known Exits Taken . | . . . . . . . . . . . . Unknown Exits Taken 11 | 1 1 1 1 1 1 1 1 1 1 1 . Scrap Searched 2 | . . . . 1 . . 1 . . . . Spaces Dug 66 | . . . . . . 26 . . 6 . 34 Terrain Destroyed 131 | . . . . . . 26 65 . 6 . 34 Melee 66 | . . . . . . 26 . . 6 . 34 Projectile . | . . . . . . . . . . . . AOE 65 | . . . . . . . 65 . . . . Terrain Rammed . | . . . . . . . . . . . . Walls Destroyed . | . . . . . . . . . . . . Machines Disabled . | . . . . . . . . . . . . Actions | -11 -10 -10 -10 -9 -8 -7 -7 -7 -6 -5 -4 --------- Run | Scr Mat Min Exi Min Mat Fac Low Low Fac Fac Fac Total 4176 | 79 53 33 515 138 512 902 827 101 389 113 514 Wait 301 | . . . 3 13 84 131 58 . 6 6 . Move 3359 | 62 49 33 494 121 321 656 620 101 352 95 455 Hop 5 | . . . . . . . . . 2 1 2 Pick Up 57 | 9 . . 1 2 23 8 12 . 2 . . Fast Attach 40 | 4 2 . 1 . 12 2 4 . 6 1 8 Attach 26 | 2 . . . . 4 3 13 . 4 . . Detach 11 | . 2 . . . 4 . . . 3 . 2 Swap 29 | . . . . . 5 15 7 . 2 . . Drop 49 | . . . 1 2 28 7 6 . 4 . 1 Fire 171 | 2 . . . . 31 53 73 . 2 10 . Melee 67 | . . . . . . 27 . . 6 . 34 Ram 12 | . . . . . . . . . . . 12 Kick . | . . . . . . . . . . . . Crush . | . . . . . . . . . . . . Escape Stasis . | . . . . . . . . . . . . Rewire 49 | . . . 15 . . . 34 . . . . Trap . | . . . . . . . . . . . . Miscellaneous . | . . . . . . . . . . . . Route ------- -11/Scrapyard -10/Materials -10/Mines -10/Exiles -9/Mines -8/Materials -7/Factory -7/Lower Caves -7/Lower Caves -6/Factory (discovered 3 exits: [*Fac] / Low x2) -5/Factory -4/Factory History --------- Turn | Location | Event 25 | -11/Scrapyard | Discovered new exit (range 16) 93 | -11/Scrapyard | Entered Materials 140 | -10/Materials | Discovered new exit (range 14) 157 | -10/Materials | Entered Mines 192 | -10/Mines | Deemed a non-threat by the Exiles lab entrance 192 | -10/Mines | Discovered new exit (range 5) 197 | -10/Mines | Entered Exiles 197 | -10/Exiles | Found Exiles lab destroyed 217 | -10/Exiles | Discovered new exit (range 15) 320 | -10/Exiles | Build established: Mutant 599 | -10/Exiles | Learned location of Zion (-7) 1098 | -10/Exiles | Entered Mines 1098 | -9/Mines | Accompanied by 4 allies 1121 | -9/Mines | Met a Derelict bent on vengeance 1310 | -9/Mines | Discovered new exit (range 3) 1315 | -9/Mines | Found the Drone Emporium 1326 | -9/Mines | Found Prototype Device 1344 | -9/Mines | Entered Materials 1344 | -8/Materials | Accompanied by 4 allies 1344 | -8/Materials | Evolved 4 slots: Propulsion x2, Utility x2 1369 | -8/Materials | Build established: Commander-Mutant 1522 | -8/Materials | Repaired Lgt. Ion Engine 1897 | -8/Materials | Build established: Scavenger-Mutant 2034 | -8/Materials | Discovered new exit (range 10) 2075 | -8/Materials | Entered Factory 2075 | -7/Factory | Evolved 2 slots: Utility x2 2181 | -7/Factory | Repaired Lgt. Nuclear Core 2543 | -7/Factory | Build established: Mutant 3558 | -7/Factory | Discovered new exit (range 7) 3570 | -7/Factory | Entered Lower Caves 3593 | -7/Lower Caves | Attacked by a faux Warlord 3645 | -7/Lower Caves | Lost 4 parts (1p3u) 4215 | -7/Lower Caves | Attracted the attention of an 0b10 checkpoint 4277 | -7/Lower Caves | Lost 3 parts (3n) 4539 | -7/Lower Caves | Build established: Scavenger-Mutant 4653 | -7/Lower Caves | Lost 9 parts (1p3n4u1w) 4663 | -7/Lower Caves | Learned Armory emergency access door positions 4663 | -7/Lower Caves | Learned Research stockpile data 4947 | -7/Lower Caves | Discovered new exit (range 7) 4960 | -7/Lower Caves | Entered another Lower Caves area 5003 | -7/Lower Caves | Spotted B-75 Beast 5087 | -7/Lower Caves | Discovered new exit (range 5) 5094 | -7/Lower Caves | Entered Factory 5094 | -6/Factory | Evolved 2 slots: Utility x2 5346 | -6/Factory | Identified Bomb Drone Bay 5400 | -6/Factory | Build established: Mutant 5448 | -6/Factory | Identified exit to Lower Caves 5478 | -6/Factory | Discovered new exit (range 19) 5487 | -6/Factory | Entered another Factory area 5487 | -5/Factory | Evolved 2 slots: Propulsion x2 5498 | -5/Factory | Discovered new exit (range 10) 5540 | -5/Factory | Spotted B-75 Beast 5554 | -5/Factory | Entered another Factory area 5554 | -4/Factory | Evolved 2 slots: Propulsion x2 5761 | -4/Factory | Spotted B-86 Titan 5901 | -4/Factory | Lost 3 parts (2n1u) 5937 | -4/Factory | Core integrity fell below 50% 5954 | -4/Factory | Core integrity fell below 20% 5955 | -4/Factory | Destroyed by S-27 Virus with Autogun Last Messages --------------- 05934_ ALERT: Suspicious activity at Garrison Access F001. Dispatching Investigation squad. 05936_ Enh. Optical Array destroyed. 05936_ Critical hit (Blast). 05936_ Knocked back. 05945_ Slammed into S-27 Virus. 05947_ Destabilizing: System interference. 05947_ Imp. Terrain Scan Processor temporarily disabled. 05948_ Slammed into S-27 Virus. 05950_ U-05 Engineer builds a Wall. 05950_ Slammed into S-27 Virus. 05951_ Penetrated by Slug. 05951_ Knocked back. 05951_ Slammed into S-27 Virus. 05952_ Destabilizing: Core damaged (-11). 05953_ Knocked back. 05953_ Slammed into S-27 Virus. 05954_ Targeting Computer destroyed. 05954_ System corrupted by crushing effect (+3). 05954_ Destabilizing: Core damaged (-23). Map ----- +----------------------------------------------------+ | ##########################?????# | | ! % + """ "" | | %= #####/###########?????# """ "" | | / """ "" # #???????????# """ "" | | ### """ "" # #???????????#= | | ## """ T" # #???????????# """ "" | | ## """ "" # #???????????# """ "" | | ### "" + #???????????# """ "" | | #?# # #???????????# | | #?# # #???????????######+#+# | | #?########## # #????????????????# | | #?????????## #"#########????###?????????# | | #?????????# % "????????######"########### | | #?????????# ########## + | | #?????????# ## # # | | +?????????# ## """" # # | | #?????????# ## """" # # | | #?????????# ## """" # # | | #?????????+ ## """" # # | | #?????????# ## """"s# # | | #????????## ##sg"""" # # | | #????????# # """" # # | | #????????# # s gs######"#"######### | | #??????? + # g Hsu ;#???###"######### | | ??????? # g#A suus ##?????# # | | ?????? # hg"u @% #??????# # | | ?????? ?# # """s %#??????# "" "" # | | ?????+##??# # G % #??????# "" "" + | | ??????????# # """ #??????# """ """ # | | ??????????# # " #??????# """ """ # | | ??????????### ### #??????# """ """ # "" | | ????????????# ??#########??????# # "" | | ????????????# ???????????#######"######### "" | | ????????????# ???????????# # "" | | ?????????#??# ???????????# + "" | | ???????? ??# ???????????# """ """ """ # | | ???????? #?# ##?????????# """ """ """ # "" | | ??????? !!? # ????????# """ """ """ # "" | | ???????? !!! # ??????# # "" | | ??????? !! # ????# """ """ """ # | | ???????? """ + " ??# ! """ """ """ # | | ???#??? """ # " " # """ """ """ # | | ???# ? """ # " " # " " | | ???# # !!] " " #################[ "" | | ???# """ """ """ # !]= ????############### "" | | ???# """ """ """ # !]= ??????# "" | | #### """ """ """ # ????????# "" | | # ??????????# " """" | | """ """ """ #???#+#?????# T """" | | """ """ """ #???# #?????# " """" | +----------------------------------------------------+ Best States ------------- Heat Dissipation 43 Energy Generation 18 Energy Capacity 240 Matter Stores 300 Matter Capacity 300 Sight Range 22 Robot Scan Range 19 Terrain Scan Density 410 Armor Coverage 450 Power Shielding 66 Evasion (%) 66 Targeting Accuracy 10 Recoil Reduction 4 Item Schematics ----------------- None Robot Schematics ------------------ None Fabricated ------------ Nothing Alien Tech Used ----------------- None Achievements -------------- None Challenges ------------ None Game ------ Seed TransmissionSuspensionDrive Manual? 0 Play Time 01:20:30 Cumulative 39.2 hours Start 2022.11.13 @ 18:26:25 End 2022.11.13 @ 19:45:12 Sessions 1 Manual Loads 0 Difficulty Rogue Special Mode None Game No. 33 Rogue 33 Adventurer 0 Explorer 0 Win Type - Total 0 Types 0/0/0/0/0/0/0/0/0 Lore% 27 Gallery% 37 Achievement% 30 Wizard Run 0 Options --------- ASCII 0 Keyboard 1 Movement Numpad Keybinds 0 Fullscreen 1 Font 16/Terminus Map View 76x50 Tactical HUD 1 Map Filters NONE Filters NONE Steam 1 RUN: 5adb13d2-4b48-482a-a361-4c5be8a86526